bitfinex/quotes_ETHUSD_20230405
["timestamp","ask_amount","ask_price","bid_price","bid_amount"]
[1680701179354,10.91315155,1920.4,1919.9,0.2664337]
[1680701179507,10.91315155,1920.4,1919.9,0.1935237]
[1680701179912,2.63428255,1920.3,1919.6,1.091]
[1680701180120,2.63428255,1920.3,1919.8,0.01823]
[1680701180332,2.63428255,1920.3,1919.8,0.12761]
[1680701180523,2.63428255,1920.3,1919.8,0.01823]
[1680701180909,2.63428255,1920.3,1919.9,0.05467]
[1680701181051,2.81654255,1920.3,1919.7,0.01823]
[1680701181438,2.63428255,1920.3,1919.7,0.12761]
[1680701181644,2.81654255,1920.3,1919.7,0.01823]
[1680701182020,2.63428255,1920.3,1919.7,0.12761]
[1680701182560,0.418869,1920.4,1919.8,1.085]
[1680701182712,2.63428255,1920.3,1919.9,0.1085]
[1680701182914,2.63428255,1920.3,1919.8,1.085]
[1680701182915,2.63428255,1920.3,1919.7,0.03646]
[1680701183236,2.63428255,1920.3,1919.9,0.01822]
[1680701183549,2.63428255,1920.3,1919.8,0.05469]
[1680701183851,2.63428255,1920.3,1919.8,0.01823]
[1680701184221,2.81654255,1920.3,1919.7,0.01823]
[1680701184422,2.81654255,1920.3,1919.5,1.093]
[1680701184626,2.63428255,1920.3,1919.7,0.01823]
[1680701184834,2.63428255,1920.3,1919.5,0.006]
[1680701184835,1.085,1920.0,1919.5,0.006]
[1680701185043,3.18118255,1919.9,1919.3,0.006]
[1680701185247,0.23,1919.8,1919.1,1.091]
[1680701185420,0.18233,1919.6,1919.0,1.10923]
[1680701185614,3.0,1919.6,1919.0,2.306527]
[1680701185920,3.0,1919.6,1919.1,1.085]
[1680701186242,0.18232,1919.7,1919.2,0.1085]
[1680701186394,0.36462,1919.8,1919.2,0.1085]
[1680701186548,0.36462,1919.8,1919.2,0.1632]
[1680701186549,2.63428255,1919.8,1919.2,0.1632]
[1680701186895,3.0,1919.7,1919.2,0.1632]
[1680701187060,3.0,1919.7,1919.2,0.13018514]
[1680701187401,3.0,1919.7,1919.3,1.085]
[1680701187591,0.18231,1919.8,1919.4,0.1085]
[1680701187763,0.54691,1919.9,1919.4,0.1085]
[1680701188102,3.0,1920.0,1919.4,0.12673]
[1680701188276,2.63428255,1920.0,1919.4,0.16319]
[1680701188796,2.63428255,1920.0,1919.4,0.18487289]
[1680701188980,0.002,1920.1,1919.4,1.26987289]
[1680701189152,6.23760847,1920.2,1919.5,0.12698729]
[1680701189351,9.05417102,1920.2,1919.5,0.14521729]
[1680701189580,8.34288255,1920.2,1919.5,0.18167729]
[1680701190311,8.34288255,1920.2,1919.5,1.26667729]
[1680701190466,8.34288255,1920.2,1919.6,0.12666773]
[1680701190663,0.54684,1920.1,1919.6,0.12666773]
[1680701190878,0.18228,1920.1,1919.6,0.12666773]
[1680701191194,0.54684,1920.1,1919.6,0.12666773]
[1680701191403,3.0,1920.1,1919.6,0.14489773]
[1680701191589,8.34288255,1920.2,1919.6,0.14489773]
[1680701191768,8.34288255,1920.2,1919.6,0.18135773]
[1680701193054,0.13085125,1920.2,1919.8,1.085]
[1680701193281,0.12885125,1920.2,1919.9,0.16318]
[1680701193471,0.416869,1920.4,1919.9,0.05468]
[1680701194198,7.97200001,1920.6,1919.9,0.05468]
[1680701194504,2.63428255,1920.5,1919.9,0.17810784]
[1680701194697,2.63428255,1920.5,1919.9,0.01822]
[1680701195198,2.81652255,1920.5,1919.9,0.01822]
[1680701195554,2.81652255,1920.5,1919.6,0.006]
[1680701195555,1.074,1920.3,1919.6,0.006]
[1680701195865,0.18228,1920.1,1919.5,0.02423]
[1680701196078,0.18228,1920.1,1919.6,0.05469]
[1680701196079,2.63428255,1920.0,1919.6,0.05469]
[1680701196283,8.479,1920.1,1920.0,0.00299006]
[1680701196284,3.002,1920.1,1920.0,0.00299006]
[1680701196494,5.63428255,1920.1,1920.0,0.00299006]
[1680701196796,6.90356255,1920.1,1920.0,0.00299006]
[1680701197010,7.13356255,1920.1,1920.0,0.00299006]
[1680701197178,7.49812255,1920.1,1920.0,0.00299006]
[1680701197534,7.13356255,1920.1,1920.0,0.00299006]
[1680701197996,7.49812255,1920.1,1920.0,0.00299006]
[1680701199217,12.97712255,1920.1,1920.0,0.00299006]
[1680701200424,1.0,1920.0,1919.1,0.004]
[1680701200624,1.085,1919.6,1919.2,0.07294]
[1680701200781,2.63428255,1919.5,1919.3,0.01823]
[1680701201333,2.63428255,1919.5,1919.1,0.006]
[1680701202014,2.81662255,1919.5,1919.1,0.006]
[1680701202225,2.63428255,1919.5,1919.2,0.0547]
[1680701202370,2.63428255,1919.5,1919.1,0.006]
[1680701202709,2.81662255,1919.5,1919.0,1.906]
[1680701203112,3.71928255,1919.5,1919.0,1.906]
[1680701203584,0.18235,1919.4,1919.0,1.906]
[1680701203784,2.81664255,1919.3,1919.0,0.006]
[1680701203967,2.81664255,1919.3,1918.9,0.006]
[1680701204180,2.81664255,1919.3,1918.7,0.02624]
[1680701204372,0.41237,1919.2,1918.7,0.008]
[1680701204616,2.63428255,1919.1,1918.7,0.02024]
[1680701204788,2.63428255,1919.1,1918.7,0.02424]
[1680701204994,2.63428255,1919.1,1918.7,0.06072]
[1680701205193,2.63428255,1919.1,1919.0,0.01823]
[1680701205508,5.63428255,1919.1,1918.9,0.084]
[1680701205706,5.63628255,1919.1,1918.9,0.084]
[1680701205902,5.63628255,1919.1,1918.9,0.12047]
[1680701206108,5.63628255,1919.1,1918.9,0.10223]
[1680701206488,5.63628255,1919.1,1918.9,0.084]
[1680701208618,2.63628255,1919.1,1918.9,0.10223]
[1680701208886,0.002,1919.3,1918.9,0.16038854]
[1680701209129,2.63428255,1919.2,1918.9,0.16038854]
[1680701210691,0.002,1919.3,1918.9,0.16038854]
[1680701210909,15.979,1919.5,1918.9,0.16638854]
[1680701211086,15.979,1919.5,1918.9,0.29882239]
[1680701211087,18.61328255,1919.5,1918.9,0.29882239]
[1680701211288,0.002,1919.5,1918.9,1.38382239]
[1680701211647,7.86,1919.8,1919.1,1.085]
[1680701211648,7.862,1919.8,1919.1,1.085]
[1680701211787,2.63428255,1919.7,1919.3,0.01823]
[1680701213142,2.63428255,1919.7,1919.3,0.0547]
[1680701214332,0.002,1919.8,1919.3,0.0547]
[1680701214638,0.002,1920.0,1919.7,1.085]
[1680701214799,15.4606,1920.3,1919.8,0.1085]
[1680701214998,0.18227,1920.2,1919.5,0.01823]
[1680701215267,0.18227,1920.2,1919.7,0.08]
[1680701215404,3.68781,1920.2,1919.7,0.08]
[1680701215602,5.479,1920.1,1919.7,0.08]
[1680701215914,0.23,1920.0,1919.7,0.08]
[1680701216686,2.63428255,1919.9,1919.7,0.08]
[1680701217550,2.81658255,1919.9,1919.3,0.006]
[1680701217705,3.0,1919.8,1919.1,0.04247]
[1680701217901,3.04660255,1919.7,1919.1,0.02423]
[1680701218103,3.04660255,1919.7,1919.4,0.083]
[1680701218324,2.86428255,1919.7,1919.4,0.083]
[1680701218527,2.86428255,1919.7,1919.1,0.006]
[1680701218528,2.86428255,1919.7,1919.1,0.04247]
[1680701218708,3.0,1919.6,1919.3,0.01823]
[1680701218908,2.63428255,1919.5,1919.3,0.01823]
[1680701219294,2.63428255,1919.5,1919.2,0.01823]
[1680701219638,2.63428255,1919.5,1919.1,0.02423]
[1680701219792,2.63428255,1919.5,1919.1,0.006]
[1680701220139,2.63428255,1919.5,1919.2,0.12764]
[1680701220457,2.63428255,1919.4,1919.2,0.0547]
[1680701220637,2.63428255,1919.4,1919.2,0.1367]
[1680701220813,2.63428255,1919.4,1919.2,0.10023]
[1680701221719,0.002,1919.5,1919.2,0.1367]
[1680701222074,0.002,1919.7,1919.2,0.15838514]
[1680701222213,0.002,1919.8,1919.5,1.085]
[1680701222401,0.002,1920.1,1919.6,0.23612]
[1680701222641,15.1909,1920.5,1919.7,1.085]
[1680701222840,2.63428255,1920.4,1919.9,0.05467]
[1680701224129,2.63428255,1920.4,1920.1,0.01822]
[1680701224483,8.11328255,1920.4,1920.1,0.01822]
[1680701224651,8.11328255,1920.4,1920.0,0.084]
[1680701224652,1.085,1920.3,1920.0,0.084]
[1680701224894,2.63428255,1920.2,1920.0,0.084]
[1680701226926,8.11328255,1920.2,1919.5,0.006]
[1680701227125,3.23,1920.1,1919.4,0.02423]
[1680701227367,3.23,1920.1,1919.7,0.082]
[1680701227368,9.19074988,1920.0,1919.7,0.082]
[1680701227677,4.315,1919.9,1919.7,0.082]
[1680701227853,2.63428255,1919.8,1919.7,0.082]
[1680701228162,5.63428255,1919.8,1919.7,0.082]
[1680701228337,5.63628255,1919.8,1919.7,0.082]
[1680701228724,5.81859255,1919.8,1919.7,0.082]
[1680701229439,6.18321255,1919.8,1919.7,0.082]
[1680701229656,5.63628255,1919.8,1919.7,0.082]
[1680701230363,5.86628255,1919.8,1919.7,0.082]
[1680701237373,11.52759255,1919.8,1919.7,0.082]
[1680701237939,11.89221255,1919.8,1919.7,0.082]
[1680701238350,11.89221255,1919.8,1919.1,1.085]
[1680701238351,15.03321255,1919.8,1919.0,1.091]
[1680701238592,5.66133,1919.6,1919.1,0.1091]
[1680701238776,2.63428255,1919.5,1919.0,1.10923]
[1680701238988,2.86428255,1919.5,1919.0,1.1457]
[1680701239985,2.86428255,1919.5,1919.0,1.26263885]
[1680701240186,2.63428255,1919.5,1919.2,0.081]
[1680701240398,2.63428255,1919.5,1919.3,0.01823]
[1680701241297,0.002,1919.6,1919.3,0.0547]
[1680701241457,0.18231,1919.8,1919.4,0.085]
[1680701241656,2.63428255,1919.7,1919.4,0.085]
[1680701242501,2.81660255,1919.7,1919.4,0.085]
[1680701242694,3.18124255,1919.7,1919.4,0.085]
[1680701244599,3.18124255,1919.7,1919.0,0.11693885]
[1680701244776,3.18124255,1919.7,1919.0,0.13516885]
[1680701244976,3.18124255,1919.7,1919.0,0.15685625]
[1680701246600,8.66024255,1919.7,1919.0,0.13862625]
[1680701246762,8.66224255,1919.7,1919.0,0.13862625]
[1680701247104,0.41233,1919.6,1919.0,0.15685625]
[1680701247301,2.63428255,1919.5,1919.0,0.15685625]
[1680701247805,2.63428255,1919.5,1919.0,0.19332625]
[1680701248409,2.63428255,1919.5,1919.0,1.28032625]
[1680701248633,2.63428255,1919.5,1919.2,0.142]
[1680701248904,2.63428255,1919.5,1919.3,0.01823]
[1680701249715,0.002,1919.7,1919.2,1.085]
[1680701249891,2.63428255,1919.6,1919.4,0.143]
[1680701250406,2.63109634,1919.6,1919.4,0.143]
[1680701251104,2.63109634,1919.6,1919.4,0.16123]
[1680701251411,2.63109634,1919.6,1919.4,0.143]
[1680701252924,2.63109634,1919.6,1919.4,0.16123]
[1680701253080,2.63109634,1919.6,1919.4,0.143]
[1680701253513,3.17807634,1919.6,1918.9,1.10923]
[1680701253666,0.23,1919.5,1918.9,1.10923]
[1680701253992,2.63428255,1919.4,1918.9,1.10923]
[1680701254199,2.81662255,1919.4,1918.9,1.474001]
[1680701254407,2.81662255,1919.4,1918.9,1.455771]
[1680701254780,2.81662255,1919.4,1918.9,0.370771]
[1680701255111,2.81662255,1919.4,1918.8,2.52424]
[1680701255293,0.23,1919.3,1918.8,2.506]
[1680701255470,2.63428255,1919.2,1918.8,2.52624]
[1680701255672,2.63428255,1919.2,1918.8,2.891012]
[1680701256572,2.63428255,1919.2,1918.8,2.925492]
[1680701256773,2.63428255,1919.2,1918.8,2.889012]
[1680701258076,2.63428255,1919.2,1918.8,2.52424]
[1680701258305,2.63428255,1919.2,1919.0,0.09]
[1680701260418,9.19828255,1919.1,1918.3,0.13185932]
[1680701260574,11.25428255,1918.8,1918.2,3.28409631]
[1680701260803,10.11126,1918.7,1918.2,3.28409631]
[1680701261132,11.25428255,1918.6,1918.1,0.002]
[1680701261328,6.41158255,1918.5,1917.9,0.208401]
[1680701261561,5.479,1918.2,1917.9,0.208401]
[1680701261709,2.86428255,1918.1,1917.9,0.208401]
[1680701262050,3.04675255,1918.1,1917.9,0.208401]
[1680701262197,3.0,1918.0,1917.9,0.208401]
[1680701262391,5.63428255,1918.0,1917.9,0.208401]
[1680701262658,5.64228255,1918.0,1917.9,0.208401]
[1680701262996,5.86628255,1918.0,1917.9,0.208401]
[1680701264007,5.87228255,1918.0,1917.9,0.208401]
[1680701264220,5.86628255,1918.0,1917.9,0.208401]
[1680701264545,5.87228255,1918.0,1917.9,0.208401]
[1680701265331,11.53376255,1918.0,1917.9,0.208401]
[1680701265527,5.86628255,1918.0,1917.9,0.208401]
[1680701265770,6.04876255,1918.0,1917.9,0.208401]
[1680701265925,11.52776255,1918.0,1917.7,0.1]
[1680701266141,2.63428255,1917.9,1917.7,0.1]
[1680701268769,3.18175255,1917.9,1917.7,0.1]
[1680701268988,0.23,1917.8,1917.7,0.1]
[1680701269259,2.63428255,1917.8,1917.7,0.1]
[1680701270232,0.002,1917.9,1917.7,0.11825]
[1680701270441,2.63428255,1917.9,1917.7,0.11825]
[1680701271105,0.002,1918.0,1917.7,0.22775]
[1680701271222,2.63428255,1918.0,1917.7,0.22775]
[1680701271423,0.002,1918.1,1917.7,0.22775]
[1680701271651,4.57411019,1918.2,1917.7,0.15475]
[1680701271856,7.20839274,1918.2,1917.7,0.15475]
[1680701272063,7.21039274,1918.2,1917.7,0.11825]
[1680701272259,7.21039274,1918.2,1917.7,0.15475]
[1680701272522,7.21039274,1918.2,1917.7,0.22775]
[1680701272733,5.63628255,1918.2,1917.7,0.22775]
[1680701273140,2.63628255,1918.2,1917.7,0.22775]
[1680701273387,2.63428255,1918.2,1917.7,0.22775]
[1680701274648,2.63428255,1918.2,1917.7,0.15475]
[1680701275295,8.11328255,1918.1,1917.7,0.1]
[1680701275448,2.86628255,1918.1,1917.7,0.1]
[1680701275649,2.86428255,1918.1,1917.7,0.1]
[1680701277368,0.002,1918.2,1917.7,0.1]
[1680701277553,2.99921255,1918.2,1917.7,0.1]
[1680701277761,2.63428255,1918.2,1917.7,0.1]
[1680701277970,2.63428255,1918.1,1917.7,0.1]
[1680701278390,0.23,1918.0,1917.7,0.1]
[1680701278630,2.63428255,1917.9,1917.7,0.1]
[1680701279391,2.81677255,1917.9,1917.7,0.1]
[1680701279754,2.63428255,1917.9,1917.7,0.1]
[1680701279983,2.81677255,1917.9,1917.7,0.1]
[1680701280380,2.63428255,1917.9,1917.7,0.1]
[1680701280906,2.81677255,1917.9,1917.7,0.1]
[1680701281273,3.18175255,1917.9,1917.7,0.1]
[1680701281501,3.18285136,1917.9,1917.7,0.1]
[1680701281703,3.17885136,1917.9,1917.7,0.1]
[1680701282585,2.63138136,1917.9,1917.7,0.1]
[1680701283178,0.002,1918.0,1917.7,0.1]
[1680701283517,3.0,1918.1,1917.7,0.1]
[1680701283823,0.54741,1918.1,1917.7,0.1]
[1680701284516,0.18247,1918.1,1917.7,0.1]
[1680701284812,2.63428255,1918.0,1917.7,0.1]
[1680701285027,2.63428255,1918.0,1917.7,0.0284563]
[1680701285580,2.63428255,1918.0,1917.7,0.0467063]
[1680701285925,0.002,1918.1,1917.7,0.0284563]
[1680701286121,0.002,1918.1,1917.7,0.0832063]
[1680701286122,2.63428255,1918.1,1917.7,0.0832063]
[1680701286699,2.63428255,1918.1,1917.7,0.0284563]
[1680701286913,2.63428255,1918.1,1917.7,0.0467063]
[1680701287604,2.63428255,1918.1,1917.7,0.0284563]
[1680701288221,2.63428255,1918.0,1917.7,0.0284563]
[1680701288660,2.63428255,1918.0,1917.7,0.0649563]
[1680701288807,2.63428255,1918.0,1917.7,0.0467063]
[1680701289315,2.63428255,1918.0,1917.7,0.0284563]
[1680701290751,2.81676255,1918.0,1917.7,0.0284563]
[1680701291521,11.25428255,1918.0,1917.7,0.0284563]
[1680701291855,3.23,1917.9,1917.7,0.0284563]
[1680701292051,2.63428255,1917.8,1917.7,0.0284563]
[1680701292256,5.64228255,1917.9,1917.7,0.0284563]
[1680701292551,2.63428255,1917.8,1917.7,0.0284563]
[1680701292706,2.86428255,1917.8,1917.7,0.0284563]
[1680701294013,2.63428255,1917.8,1917.7,0.0284563]
[1680701295733,6.41178255,1917.8,1917.7,0.0284563]
[1680701295911,6.41378255,1917.8,1917.7,0.0284563]
[1680701296268,16.11678255,1917.8,1917.5,0.1]
[1680701296555,16.11678255,1917.8,1917.4,0.1]
[1680701296556,0.18252,1917.5,1917.4,0.1]
[1680701296771,15.32828255,1917.5,1917.4,0.1]
[1680701296915,11.48628255,1917.5,1917.4,0.1]
[1680701297121,15.56928255,1917.5,1917.4,0.1]
[1680701297452,14.48628255,1917.5,1917.4,0.1]
[1680701297660,14.66880255,1917.5,1917.4,0.1]
[1680701298078,20.03385255,1917.5,1917.4,0.1]
[1680701298375,15.03385255,1917.5,1917.4,0.1]
[1680701299223,17.56892041,1917.5,1917.4,0.1]
[1680701299644,18.65392041,1917.5,1917.4,0.1]
[1680701299842,18.83644041,1917.5,1917.4,0.1]
[1680701300361,19.20149041,1917.5,1917.4,0.1]
[1680701300578,24.64509041,1917.5,1917.4,0.1]
[1680701300776,23.56009041,1917.5,1917.4,0.1]
[1680701302570,24.64309041,1917.5,1917.4,0.1]
[1680701304904,26.46838041,1917.5,1917.4,0.1]
[1680701307303,26.47438041,1917.5,1917.4,0.1]
[1680701307503,26.46838041,1917.5,1917.4,0.1]
[1680701307708,28.24717517,1917.5,1917.4,0.1]
[1680701308804,26.42188517,1917.5,1917.4,0.1]
[1680701311290,27.50688517,1917.5,1917.4,0.1]
[1680701311476,27.50088517,1917.5,1917.4,0.1]
[1680701311756,27.13583517,1917.5,1917.4,0.1]
[1680701311869,27.50088517,1917.5,1917.4,0.1]
[1680701313778,24.41309041,1917.5,1917.4,0.1]
[1680701314701,24.41909041,1917.5,1917.4,0.1]
[1680701314898,24.41309041,1917.5,1917.4,0.1]
[1680701315699,24.54343849,1917.5,1917.4,0.1]
[1680701315893,24.77343849,1917.5,1917.4,0.1]
[1680701316958,24.77943849,1917.5,1917.4,0.1]
[1680701319505,25.0397505,1917.5,1917.4,0.1]
[1680701320523,2.76663063,1917.5,1917.4,0.1]
[1680701320842,2.76463063,1917.5,1917.4,0.1]
[1680701321351,2.63428255,1917.5,1917.4,0.1]
[1680701322015,5.86428255,1917.5,1917.4,0.1]
[1680701322342,5.86628255,1917.5,1917.4,0.1]
[1680701323024,5.63628255,1917.5,1917.4,0.1]
[1680701327461,6.04880255,1917.5,1917.4,0.1]
[1680701327914,5.86628255,1917.5,1917.4,0.1]
[1680701329051,5.63628255,1917.5,1917.4,0.1]
[1680701330160,5.63628255,1917.5,1917.4,0.187]
[1680701330161,3.002,1917.5,1917.4,0.187]
[1680701330319,0.13254618,1917.6,1917.4,0.20525]
[1680701330516,0.13254618,1917.6,1917.4,1.272]
[1680701330722,0.12985763,1917.6,1917.5,0.1272]
[1680701332373,7.862,1917.8,1917.5,0.14545]
[1680701332521,2.63428255,1917.7,1917.5,0.14545]
[1680701332725,7.99168,1917.8,1917.5,0.14545]
[1680701332948,2.63428255,1917.7,1917.5,0.2172]
[1680701333147,2.63428255,1917.7,1917.5,0.09]
[1680701334593,7.99168,1917.8,1917.5,1.19325]
[1680701334895,0.002,1917.8,1917.5,1.22975]
[1680701335068,29.932,1918.0,1917.6,0.122975]
[1680701335390,0.002,1918.0,1917.7,1.10325]
[1680701335563,0.12720378,1918.3,1917.8,1.085]
[1680701335762,2.63428255,1918.2,1917.8,1.10324]
[1680701337081,2.63428255,1918.2,1917.8,1.13974]
[1680701337752,2.63428255,1918.2,1917.9,1.10324]
[1680701337958,2.63428255,1918.2,1917.9,1.16142985]
[1680701338155,2.63428255,1918.2,1918.0,0.11614299]
[1680701339061,2.63428255,1918.2,1918.0,1.21938299]
[1680701339262,3.13520378,1918.3,1918.1,1.085]
[1680701339596,3.13520378,1918.3,1918.0,1.29414299]
[1680701339597,0.12720378,1918.3,1918.2,1.085]
[1680701339969,0.30965378,1918.3,1918.1,0.1294143]
[1680701340294,0.18244,1918.4,1918.1,1.2144143]
[1680701340521,10.3781,1918.7,1918.2,0.12144143]
[1680701340829,10.3781,1918.7,1918.1,1.085]
[1680701340830,3.18156255,1918.6,1918.1,1.085]
[1680701340986,2.81671255,1918.6,1918.1,1.085]
[1680701341190,2.81671255,1918.6,1918.2,1.085]
[1680701341390,2.81671255,1918.6,1918.2,0.1085]
[1680701341693,2.81671255,1918.6,1918.1,1.085]
[1680701342222,2.63428255,1918.6,1918.1,1.10324]
[1680701342424,2.81670255,1918.6,1918.1,1.085]
[1680701342627,2.81670255,1918.6,1918.1,1.22423387]
[1680701342628,2.63428255,1918.6,1918.1,1.22423387]
[1680701342787,2.81670255,1918.6,1918.1,1.20599387]
[1680701343122,2.63428255,1918.6,1918.1,1.22423387]
[1680701343289,2.63428255,1918.6,1918.2,0.12242339]
[1680701343488,2.63428255,1918.6,1918.2,1.22566339]
[1680701343801,2.63428255,1918.6,1918.2,1.26215339]
[1680701344701,2.63428255,1918.6,1918.4,0.09]
[1680701347022,2.63428255,1918.6,1918.0,1.085]
[1680701347193,2.81670255,1918.6,1918.0,1.085]
[1680701347714,0.23,1918.5,1918.0,1.10324]
[1680701347883,2.63428255,1918.4,1918.0,1.10324]
[1680701348113,8.29573255,1918.4,1917.9,0.008]
[1680701348332,0.41245,1918.3,1917.8,0.01824]
[1680701348576,2.63428255,1918.2,1917.7,0.01825]
[1680701348719,2.63428255,1918.2,1917.8,0.01825]
[1680701348920,2.63428255,1918.2,1917.7,0.01825]
[1680701352065,2.63428255,1918.2,1917.6,1.10670324]
[1680701352220,2.81674255,1918.2,1917.6,1.12495324]
[1680701352760,2.63154564,1918.2,1917.6,1.13095324]
[1680701353355,2.63154564,1918.2,1917.6,0.04595324]
[1680701353526,2.81400564,1918.2,1917.6,0.04595324]
[1680701354360,0.41247,1918.1,1917.6,0.02770324]
[1680701354548,2.63428255,1918.0,1917.6,0.04595324]
[1680701354716,2.63428255,1918.0,1917.6,0.02770324]
[1680701355435,2.63428255,1918.0,1917.6,0.04595324]
[1680701355638,2.81676255,1918.0,1917.5,0.006]
[1680701355841,0.23,1917.9,1917.4,1.191]
[1680701356061,2.63428255,1917.8,1917.4,1.20925]
[1680701356262,3.0,1917.7,1917.4,0.106]
[1680701356462,5.63428255,1917.7,1917.4,0.106]
[1680701356630,5.63628255,1917.7,1917.4,0.106]
[1680701357066,2.63428255,1917.6,1917.4,0.1]
[1680701357733,2.81680255,1917.6,1917.4,0.1]
[1680701357933,2.63428255,1917.6,1917.4,0.1]
[1680701358128,2.81680255,1917.6,1917.4,0.1]
[1680701358460,3.0,1917.5,1917.4,0.1]
[1680701358663,5.63428255,1917.5,1917.4,0.1]
[1680701358827,5.63628255,1917.5,1917.4,0.1]
[1680701359889,6.04880255,1917.5,1917.4,0.1]
[1680701360393,19.85133255,1917.5,1917.4,0.1]
[1680701360593,21.11685255,1917.5,1917.4,0.1]
[1680701360775,16.11685255,1917.5,1917.4,0.1]
[1680701362073,15.56928255,1917.5,1917.4,0.1]
[1680701362261,5.86628255,1917.5,1917.4,0.1]
[1680701363040,2.86628255,1917.5,1917.4,0.1]
[1680701363194,2.86428255,1917.5,1917.4,0.1]
[1680701364396,3.04680255,1917.5,1917.4,0.1]
[1680701364596,5.86428255,1917.5,1917.4,0.1]
[1680701364768,5.86628255,1917.5,1917.4,0.1]
[1680701365097,5.63628255,1917.5,1917.4,0.1]
[1680701365245,5.81880255,1917.5,1917.4,0.1]
[1680701365446,11.66285255,1917.5,1917.4,0.1]
[1680701366278,11.29780255,1917.5,1917.4,0.1]
[1680701366595,11.52780255,1917.5,1917.4,0.1]
[1680701367677,11.52780255,1917.5,1917.4,0.09670979]
[1680701367884,6.04880255,1917.5,1917.4,0.09670979]
[1680701368201,5.86628255,1917.5,1917.4,0.09670979]
[1680701368519,6.41385255,1917.5,1917.4,0.09670979]
[1680701369963,6.04880255,1917.5,1917.4,0.09670979]
[1680701370567,7.14396255,1917.5,1917.4,0.09670979]
[1680701371205,6.41385255,1917.5,1917.4,0.09670979]
[1680701371418,6.04880255,1917.5,1917.4,0.09670979]
[1680701371624,6.41385255,1917.5,1917.4,0.09670979]
[1680701371911,5.86628255,1917.5,1917.4,0.09670979]
[1680701374433,5.63628255,1917.5,1917.4,0.09670979]
[1680701377332,5.81880255,1917.5,1917.4,0.09670979]
[1680701377649,6.18385255,1917.5,1917.4,0.09670979]
[1680701377952,6.41385255,1917.5,1917.4,0.09670979]
[1680701378457,5.86628255,1917.5,1917.4,0.09670979]
[1680701379126,6.04880255,1917.5,1917.4,0.09670979]
[1680701379504,6.41385255,1917.5,1917.4,0.09670979]
[1680701379710,5.86628255,1917.5,1917.4,0.09670979]
[1680701380208,11.34528255,1917.5,1917.4,0.09670979]
[1680701381010,14.48628255,1917.5,1917.4,0.09670979]
[1680701382253,14.66880255,1917.5,1917.4,0.09670979]
[1680701382459,14.48628255,1917.5,1917.4,0.09670979]
[1680701384939,14.66880255,1917.5,1917.4,0.09670979]
[1680701385131,17.75144041,1917.5,1917.4,0.09670979]
[1680701386089,18.11649041,1917.5,1917.4,0.09670979]
[1680701387145,18.84660041,1917.5,1917.4,0.09670979]
[1680701387556,20.78155331,1917.5,1917.4,0.09670979]
[1680701387883,27.92250456,1917.5,1917.4,0.09670979]
[1680701389086,27.92250456,1917.5,1917.4,0.09295825]
[1680701389675,13.62,1917.3,1917.2,0.1]
[1680701389883,13.62,1917.3,1916.9,0.1]
[1680701389884,10.57507092,1917.0,1916.9,0.1]
[1680701390201,20.39813347,1917.0,1916.9,0.1]
[1680701390494,0.54786,1916.5,1916.3,0.1]
[1680701390792,9.35043,1916.7,1916.3,0.1]
[1680701390793,2.86428255,1916.4,1916.3,0.1]
[1680701390963,6.04691255,1916.4,1916.3,0.1]
[1680701391284,6.04891255,1916.4,1916.3,0.1]
[1680701391490,6.41417255,1916.4,1916.3,0.1]
[1680701395079,15.03417255,1916.4,1916.3,0.1]
[1680701395483,6.41417255,1916.4,1916.3,0.1]
[1680701395745,3.41463,1916.4,1916.3,0.1]
[1680701396029,6.41217255,1916.4,1916.3,0.1]
[1680701396196,6.41417255,1916.4,1916.3,0.1]
[1680701397730,3.04891255,1916.4,1916.3,0.1]
[1680701398027,4.14270255,1916.4,1916.3,0.1]
[1680701398433,3.41217255,1916.4,1916.3,0.1]
[1680701398932,6.04691255,1916.4,1916.3,0.1]
[1680701399225,0.002,1916.4,1916.3,0.1]
[1680701399528,0.002,1916.7,1916.3,1.20326]
[1680701399698,0.002,1917.0,1916.4,0.120326]
[1680701399902,2.63428255,1917.0,1916.6,1.085]
[1680701400083,2.63428255,1917.0,1916.6,1.10326]
[1680701400437,0.18258,1916.9,1916.7,1.085]
[1680701400587,2.63428255,1917.0,1916.7,1.1941]
[1680701400927,2.63428255,1917.0,1916.6,0.006]
[1680701400928,9.39138255,1916.9,1916.6,0.006]
[1680701401131,9.16784,1916.6,1916.5,0.006]
[1680701401329,9.16784,1916.6,1916.3,0.1]
[1680701401330,11.25628255,1916.6,1916.3,0.104]
[1680701401487,2.63428255,1916.5,1916.3,0.1]
[1680701401687,0.18263,1916.4,1916.3,0.1]
[1680701401884,2.63428255,1916.4,1916.3,0.1]
[1680701402113,5.63428255,1916.4,1916.3,0.1]
[1680701402388,5.63628255,1916.4,1916.3,0.1]
[1680701403132,0.002,1916.4,1916.3,0.1]
[1680701403323,5.11381154,1916.5,1916.3,0.1]
[1680701403789,5.11381154,1916.5,1916.4,0.05478]
[1680701403983,5.11381154,1916.5,1916.4,0.01826]
[1680701404189,5.11381154,1916.5,1916.4,0.05478]
[1680701404401,0.002,1916.5,1916.4,2.356663]
[1680701404602,0.13225702,1917.1,1916.4,2.362663]
[1680701404916,2.63428255,1917.0,1916.8,1.085]
[1680701405247,0.13425702,1917.1,1916.8,1.085]
[1680701405545,2.63428255,1917.1,1916.8,1.24826]
[1680701405714,2.63428255,1917.1,1916.9,1.085]
[1680701405913,2.63428255,1917.1,1916.9,1.10325]
[1680701406244,2.63428255,1917.1,1916.9,1.228076]
[1680701406427,2.63428255,1917.1,1916.9,1.209826]
[1680701406833,0.13438358,1917.2,1916.9,1.209826]
[1680701407002,2.76666613,1917.2,1916.9,1.209826]
[1680701407406,2.76666613,1917.2,1916.9,1.234076]
[1680701407714,2.76666613,1917.2,1917.0,0.1234076]